fUST/lending_fUST_20240110
["ID","MTS","AMOUNT","RATE_DAILY","PERIOD"]
[310921663,1704820241087,-1000.0,0.00026759,2]
[310921664,1704820241096,-1000.0,0.00026764,2]
[310921665,1704820241105,-1000.0,0.00026835,2]
[310921666,1704820241114,-1000.0,0.00026859,2]
[310921667,1704820241123,-1000.0,0.00026862,2]
[310921668,1704820241132,-1000.0,0.00026869,2]
[310921669,1704820241141,-1000.0,0.00026965,2]
[310921670,1704820241150,-1000.0,0.00026968,2]
[310921671,1704820241160,-496.879336,0.0002698,5]
[310921672,1704820241169,-163.305352,0.00027,2]
[310921673,1704820241178,-1649.84937747,0.00027297,2]
[310921674,1704820241188,-414.87912061,0.00027397,2]
[310921675,1704820241196,-351.06782,0.00027397,2]
[310921676,1704820241206,-351.06782,0.00027397,2]
[310921677,1704820241215,-30086.74,0.00027397,3]
[310921678,1704820241224,-781.9794386,0.000275,2]
[310921679,1704820241234,-2000.0,0.000275,2]
[310921680,1704820241243,-196.5,0.000275,2]
[310921681,1704820241252,-2000.0,0.0002751,2]
[310921682,1704820241261,-2000.0,0.0002752,2]
[310921683,1704820241271,-2000.0,0.0002753,2]
[310921684,1704820241280,-2000.0,0.0002754,2]
[310921685,1704820241290,-2000.0,0.0002755,2]
[310921686,1704820241299,-2484.964723,0.0002755,2]
[310921687,1704820241309,-2484.964723,0.0002755,2]
[310921688,1704820241318,-3480.47672,0.0002756,2]
[310921689,1704820241328,-646.76760596,0.0002772,2]
[310921690,1704820241338,-237.51946768,0.00028,2]
[310921692,1704820241348,-155.12309599,0.00028,2]
[310921693,1704820241361,-157.76589739,0.0002828,2]
[310921694,1704820241374,-150.0,0.00028383,2]
[310921695,1704820241383,-2484.964723,0.00028631,2]
[310921696,1704820241393,-2484.964723,0.00028631,2]
[310921697,1704820241402,-351.06782,0.00028631,2]
[310921698,1704820241412,-351.06782,0.00028631,2]
[310921699,1704820241421,-327.373269,0.00028631,2]
[310921700,1704820241430,-327.373269,0.00028631,2]
[310921703,1704820241440,-155.71471763,0.00028631,2]
[310921706,1704820241451,-200.0,0.00028631,2]
[310921707,1704820241460,-3006.85624099,0.00028631,2]
[310921709,1704820241470,-300.0,0.00028631,2]
[310921710,1704820241479,-154.90705577,0.00028631,2]
[310921711,1704820241489,-2079.14548292,0.00028631,2]
[310921712,1704820241499,-763.21617798,0.00028631,2]
[310921713,1704820241508,-783.16983902,0.00029,2]
[310921714,1704820241620,-1982.4602042,0.00029,2]
[310921715,1704820241631,-1000.0,0.00029,29]
[310921716,1704820241641,-682.88905023,0.00029088,2]
[310921717,1704820241652,-621.3383803,0.00029106,2]
[310921718,1704820241665,-150.90945433,0.00029216,30]
[310921719,1704820241676,-155.0,0.00029244,2]
[310921720,1704820241686,-200.0,0.000296,4]
[310921721,1704820241696,-150.90945433,0.00029812,7]
[310921722,1704820241705,-687.04047776,0.0003,4]
[310921723,1704820241714,-463.25005188,0.0003,4]
[310921724,1704820241723,-166.78944766,0.0003,2]
[310921725,1704820241733,-2910.28130465,0.0003,10]
[310921726,1704820241743,-243.63871422,0.0003,4]
[310921727,1704820241752,-6971.6600529,0.0003,4]
[310921728,1704820241762,-282.50801309,0.0003,3]
[310921729,1704820241771,-185.0,0.0003,2]
[310921730,1704820241781,-5000.0,0.00030137,2]
[310921731,1704820241790,-642.29148733,0.00030155,2]
[310921732,1704820241800,-326.11457437,0.00030155,2]
[310921733,1704820241809,-351.06782,0.00030178,2]
[310921734,1704820241818,-351.06782,0.00030178,2]
[310921735,1704820241828,-5000.0,0.00030244,2]
[310921736,1704820241837,-2484.964723,0.000303,2]
[310921737,1704820241846,-2484.964723,0.000303,2]
[310921738,1704820241856,-1500.0,0.000303,2]
[310921739,1704820241865,-231.8455,0.00030399,2]
[310921740,1704820241874,-150.90945433,0.0003042,4]
[310921741,1704820241884,-1000.0,0.00030526,2]
[310921742,1704820241893,-327.373269,0.00030526,2]
[310921743,1704820241902,-327.373269,0.00030526,2]
[310921744,1704820241911,-1000.0,0.00030535,2]
[310921745,1704820241920,-623.14445251,0.00030543,2]
[310921746,1704820241929,-2138.95259345,0.00030553,3]
[310921747,1704820241938,-4450.36044221,0.00030553,4]
[310921748,1704820241949,-620.06691901,0.00030561,2]
[310921749,1704820241958,-2484.964723,0.00030588,2]
[310921750,1704820241967,-2484.964723,0.00030588,2]
[310921751,1704820241977,-351.06782,0.00030588,2]
[310921752,1704820241986,-351.067815,0.00030588,2]
[310921753,1704820241995,-5000.0,0.00030595,7]
[310921754,1704820242004,-3746.7649554,0.00030595,3]
[310921755,1704820242014,-5000.0,0.00030595,7]
[310921756,1704820242023,-11146.77590305,0.00030595,3]
[310921757,1704820242032,-2484.964723,0.00030595,2]
[310921758,1704820242041,-2484.964723,0.00030595,2]
[310921759,1704820242050,-327.373269,0.00030595,2]
[310921760,1704820242059,-327.373269,0.00030595,2]
[310921761,1704820242069,-2484.964723,0.00030597,2]
[310921762,1704820242078,-2484.964723,0.00030597,2]
[310921763,1704820242087,-327.373269,0.00030597,2]
[310921764,1704820242096,-327.373269,0.00030597,2]
[310921765,1704820242106,-50000.0,0.00030597,2]
[310921766,1704820242115,-50000.0,0.00030603,2]
[310921767,1704820242125,-327.373269,0.00030603,2]
[310921768,1704820242134,-327.373269,0.00030603,2]
[310921769,1704820242143,-5000.0,0.00030604,7]
[310921770,1704820242152,-18039.754882,0.00030614,3]
[310921771,1704820242161,-155.0,0.00030614,2]
[310921772,1704820242171,-167.46226827,0.00030633,10]
[310921773,1704820242180,-2484.964723,0.00030634,2]
[310921774,1704820242189,-2484.96471398,0.00030634,2]
[310921775,1704820242199,-327.373269,0.00030634,2]
[310921776,1704820242208,-327.373269,0.00030634,2]
[310921777,1704820242218,-327.373269,0.00030634,2]
[310921778,1704820242227,-327.373268,0.00030634,2]
[310921779,1704820242237,-50000.0,0.00030634,3]
[310921780,1704820242246,-50000.0,0.00030634,3]
[310921781,1704820242255,-50000.0,0.00030634,3]
[310921782,1704820242265,-50000.0,0.00030634,3]
[310921783,1704820242274,-50000.0,0.00030634,3]
[310921784,1704820242283,-89455.65362538,0.00030634,3]
[310921785,1704820242292,-50000.0,0.00030634,2]
[310921786,1704820242301,-50000.0,0.00030634,2]
[310921787,1704820242311,-61216.29079684,0.00030634,2]
[310921788,1704820242320,-5000.0,0.00030634,7]
[310921789,1704820242329,-3765.20363496,0.00030634,4]
[310921790,1704820242339,-155.37000111,0.00030985,4]
[310921791,1704820242348,-2006.0,0.00031,2]
[310921792,1704820242357,-83930.64805693,0.00031,4]
[310921793,1704820242367,-1000.0,0.00031,31]
[310921794,1704820242376,-150.90945433,0.00031041,2]
[310921795,1704820242385,-1500.0,0.000313,2]
[310921796,1704820242395,-5012.85254878,0.00031399,2]
[310921797,1704820242404,-680.81316922,0.000318,3]
[310921798,1704820242414,-151.0,0.00031847,2]
[310921799,1704820242423,-155.0,0.00031984,2]
[310921800,1704820242433,-1787.0,0.00032,2]
[310921801,1704820242442,-868.9759266,0.00032,2]
[310921802,1704820242451,-868.9759266,0.00032,2]
[310921803,1704820242461,-868.9759266,0.00032,2]
[310921804,1704820242471,-868.9759266,0.00032,2]
[310921805,1704820242481,-868.9759266,0.00032,2]
[310921806,1704820242490,-868.9759266,0.00032,2]
[310921807,1704820242500,-868.9759266,0.00032,2]
[310921808,1704820242509,-868.9759266,0.00032,2]
[310921809,1704820242519,-868.9759266,0.00032,2]
[310921810,1704820242528,-868.9759266,0.00032,2]
[310921811,1704820242538,-223.565,0.00032151,4]
[310921812,1704820242548,-223.566,0.00032151,4]
[310921813,1704820242558,-223.565,0.00032151,4]
[310921814,1704820242568,-223.565,0.00032151,4]
[310921815,1704820242577,-223.566,0.00032151,4]
[310921816,1704820242587,-1500.0,0.000323,2]
[310921817,1704820242596,-98558.69554123,0.000325,5]
[310921818,1704820242606,-8000.0,0.000325,14]
[310921819,1704820242615,-50000.0,0.00032581,7]
[310921820,1704820242625,-152.38900235,0.0003266,7]
[310921821,1704820242634,-5000.0,0.00032686,7]
[310921822,1704820242643,-659.06311478,0.00032744,7]
[310921823,1704820242653,-659.06311478,0.00032764,7]
[310921824,1704820242663,-816.453,0.00032821,4]
[310921825,1704820242676,-816.453,0.00032821,4]
[310921826,1704820242686,-816.453,0.00032821,4]
[310921827,1704820242696,-816.453,0.00032821,4]
[310921828,1704820242705,-816.454,0.00032821,4]
[310921829,1704820242715,-500.0,0.00032876,7]
[310921830,1704820242724,-302.20113863,0.00032876,7]
[310921831,1704820242733,-645.87190968,0.00032876,7]
[310921832,1704820242742,-570.67279479,0.00032876,7]
[310921833,1704820242752,-252.66770224,0.00032876,7]
[310921834,1704820242761,-500.0,0.00032876,7]
[310921835,1704820242770,-446.83990022,0.00032876,7]
[310921836,1704820242779,-500.0,0.00032876,7]
[310921837,1704820242788,-500.0,0.00032876,7]
[310921838,1704820242797,-587.43665926,0.00032876,7]
[310921839,1704820242807,-500.0,0.00032876,7]
[310921840,1704820242817,-398.80540997,0.00032876,7]
[310921841,1704820242826,-500.0,0.00032876,7]
[310921842,1704820242835,-500.0,0.00032876,7]
[310921844,1704820242844,-500.0,0.00032876,7]
[310921845,1704820242854,-415.31747669,0.00032876,7]
[310921846,1704820242863,-500.0,0.00032876,7]
[310921847,1704820242872,-500.0,0.00032876,7]
[310921848,1704820242881,-154.01482332,0.00032876,7]
[310921849,1704820242891,-500.0,0.00032876,7]
[310921850,1704820242900,-500.0,0.00032876,7]
[310921851,1704820242909,-500.0,0.00032876,7]
[310921852,1704820242918,-500.0,0.00032876,7]
[310921853,1704820242927,-168.92538198,0.00032876,7]
[310921854,1704820242937,-500.0,0.00032876,7]
[310921855,1704820242946,-539.38041701,0.00032876,7]
[310921857,1704820242956,-500.0,0.00032876,7]
[310921859,1704820242965,-500.0,0.00032876,7]
[310921861,1704820242974,-586.60227298,0.00032876,7]
[310921863,1704820242983,-189.3714523,0.00032876,7]
[310921865,1704820242992,-579.07638229,0.00032876,7]
[310921867,1704820243001,-246.5090663,0.00032876,7]
[310921870,1704820243010,-5029.997,0.000329,10]
[310921873,1704820243020,-152.38900235,0.00032929,7]
[310921876,1704820243029,-154.41457912,0.00032947,7]
[310921879,1704820243038,-10000.0,0.00032998,2]
[310921883,1704820243048,-15288.87742,0.00032999,3]
[310921885,1704820243057,-13128.67224215,0.00033,2]
[310921886,1704820243067,-1500.0,0.00033,2]
[310921887,1704820243076,-168.08,0.00033,2]
[310921888,1704820243086,-168.08,0.00033,2]
[310921890,1704820243094,-168.08,0.00033,2]
[310921891,1704820243103,-168.08,0.00033,2]
[310921892,1704820243113,-168.08,0.00033,2]
[310921894,1704820243122,-168.08,0.00033,2]
[310921896,1704820243131,-168.08,0.00033,2]
[310921898,1704820243140,-168.08,0.00033,2]
[310921899,1704820243148,-168.08,0.00033,2]
[310921900,1704820243158,-168.08,0.00033,2]
[310921901,1704820243167,-168.08,0.00033,2]
[310921903,1704820243176,-168.08,0.00033,2]
[310921904,1704820243185,-168.08,0.00033,2]
[310921905,1704820243194,-168.08,0.00033,2]
[310921906,1704820243203,-168.08,0.00033,2]
[310921907,1704820243212,-168.08,0.00033,2]
[310921908,1704820243221,-168.08,0.00033,2]
[310921909,1704820243230,-168.08,0.00033,2]
[310921910,1704820243239,-334.36,0.00033,2]
[310921911,1704820243248,-1000.0,0.00033,33]
[310921912,1704820243257,-659.06311478,0.00033027,7]
[310921913,1704820243266,-6746.83240181,0.0003303,7]
[310921914,1704820243275,-659.06311478,0.00033053,7]
[310921915,1704820243284,-659.06311478,0.00033064,7]
[310921916,1704820243294,-5000.0,0.0003307,7]
[310921917,1704820243303,-5000.0,0.00033081,7]
[310921918,1704820243312,-151.0,0.00033098,2]
[310921919,1704820243321,-5000.0,0.00033156,7]
[310921920,1704820243330,-659.06311478,0.00033254,7]
[310921921,1704820243340,-1500.0,0.000333,2]
[310921922,1704820243349,-152.38900235,0.00033329,7]
[310921923,1704820243361,-659.06311478,0.00033342,7]
[310921924,1704820243371,-155.0,0.00033354,2]
[310921925,1704820243381,-659.06311478,0.00033397,7]
[310921926,1704820243391,-154.41457912,0.00033401,7]
[310921927,1704820243400,-152.38900235,0.00033419,7]
[310921928,1704820243410,-157.03719731,0.00033489,4]
[310921929,1704820243420,-190.53640211,0.00033489,2]
[310921930,1704820243429,-199.57598445,0.00033489,4]
[310921931,1704820243438,-195.17243971,0.0003349,4]
[310921932,1704820243447,-649.46848965,0.00033491,4]
[310921935,1704820243457,-1200.0,0.00033491,4]
[310921938,1704820243466,-156.05408519,0.00033491,2]
[310921941,1704820243476,-500.0,0.00033491,2]
[310921944,1704820243485,-5000.0,0.00033494,2]
[310921946,1704820243495,-659.06311478,0.00033497,7]
[310921948,1704820243504,-152.38900235,0.00033512,7]
[310921950,1704820243514,-152.38900235,0.00033522,7]
[310921952,1704820243523,-50000.0,0.00033571,7]
[310921954,1704820243533,-152.38900235,0.00033602,7]
[310921956,1704820243542,-5000.0,0.00033628,7]
[310921958,1704820243552,-659.06311478,0.00033654,7]
[310921960,1704820243563,-659.06311478,0.0003379,7]
[310921962,1704820243572,-32098.36745887,0.000339,3]
[310921963,1704820243583,-189.734139,0.0003395,2]
[310921965,1704820243593,-165.62897,0.0003395,2]
[310921967,1704820243603,-185.474216,0.0003395,2]
[310921969,1704820243612,-169.004279,0.0003395,2]
[310921971,1704820243622,-158.272086,0.00033979,2]
[310921973,1704820243631,-171.52697,0.00033979,2]
[310921974,1704820243640,-220.662538,0.00033979,2]
[310921975,1704820243650,-155.26326361,0.00033996,4]
[310921976,1704820243661,-228.60658959,0.00033997,4]
[310921978,1704820243670,-175.86346322,0.00033997,4]
[310921979,1704820243679,-160.0,0.00033999,10]
[310921980,1704820243692,-1000.0,0.00034,7]
[310921981,1704820243701,-544.39643349,0.00034,7]
[310921982,1704820243710,-385.76865675,0.00034,2]
[310921983,1704820243719,-449998.0,0.00034,5]
[310921984,1704820243728,-500.0,0.00034,7]
[310921985,1704820243834,-659.06311478,0.00034034,7]
[310921986,1704820243844,-5000.0,0.00034075,7]
[310921987,1704820243853,-152.38900235,0.0003408,7]
[310921988,1704820243862,-152.38900235,0.00034088,7]
[310921989,1704820243871,-5000.0,0.00034099,7]
[310921990,1704820243880,-659.06311478,0.00034253,7]
[310921991,1704820243890,-5000.0,0.00034311,7]
[310921992,1704820243899,-5000.0,0.0003432,7]
[310921993,1704820243911,-5000.0,0.00034321,7]
[310921994,1704820243920,-659.06311478,0.00034341,7]
[310921995,1704820243929,-13632.10155416,0.00034344,5]
[310921996,1704820243938,-659.06311478,0.00034346,7]
[310921997,1704820243948,-151.0,0.00034348,2]
[310921998,1704820243957,-152.38900235,0.00034361,7]
[310921999,1704820243966,-165.62897,0.00034375,2]
[310922000,1704820243976,-150.90945433,0.0003449,2]
[310922001,1704820243985,-250.34067559,0.0003449,2]
[310922002,1704820243996,-250.0,0.000345,30]
[310922003,1704820244005,-6011.66417734,0.000345,2]
[310922004,1704820244014,-4000.0,0.00034521,2]
[310922005,1704820244023,-154.41457912,0.00034687,7]
[310922006,1704820244033,-659.06311478,0.00034706,7]
[310922007,1704820244042,-155.0,0.00034724,2]
[310922008,1704820244051,-659.06311478,0.00034739,7]
[310922009,1704820244060,-189.734139,0.00034799,2]
[310922010,1704820244069,-165.62897,0.00034799,2]
[310922011,1704820244078,-154.41457912,0.00034874,7]
[310922012,1704820244087,-152.38900235,0.00034881,7]
[310922013,1704820244097,-154.90705577,0.000349,2]
[310922014,1704820244106,-242.25670695,0.000349,30]
[310922015,1704820244115,-184.73374838,0.0003495,30]
[310922016,1704820244124,-24140.18610249,0.0003498,14]
[310922017,1704820244133,-165.36431291,0.00034997,4]
[310922018,1704820244143,-160.0,0.00034999,10]
[310922019,1704820244152,-218.00692473,0.00034999,10]
[310922020,1704820244162,-7803.1787706,0.00035,4]
[310922021,1704820244171,-772.94490574,0.00035,14]
[310922022,1704820244181,-6452.96007234,0.00035,4]
[310922023,1704820244190,-1000.0,0.00035,35]
[310922024,1704820244199,-46191.73474708,0.00035,2]
[310922025,1704820244208,-154.8915759,0.00035,4]
[310922026,1704820244218,-170.45418219,0.00035,30]
[310922027,1704820244227,-332.52969855,0.00035,4]
[310922028,1704820244236,-388.53399242,0.00035,4]
[310922029,1704820244246,-3042.83244916,0.00035,2]
[310922030,1704820244255,-592.64784145,0.00035,2]
[310922031,1704820244265,-154.92922707,0.00035,2]
[310922032,1704820244274,-198538.0,0.00035,2]
[310922033,1704820244283,-500000.0,0.00035,7]
[310922034,1704820244293,-9973.97789574,0.00035,3]
[310922035,1704820244303,-425.733372,0.00035,7]
[310922036,1704820244312,-7503.56939095,0.00035,45]
[310922037,1704820244322,-250.0,0.00035,2]
[310922038,1704820244331,-1596.96171091,0.00035,7]
[310922039,1704820244340,-500.0,0.00035,7]
[310922040,1704820244350,-200.0,0.00035,7]
[310922041,1704820244361,-171.0,0.00035,2]
[310922042,1704820244374,-22119.30647215,0.00035,2]
[310922043,1704820244383,-648.0,0.00035,2]
[310922044,1704820244393,-5016.06360236,0.00035,30]
[310922045,1704820244403,-431.12624763,0.00035,2]
[310922046,1704820244412,-10000.0,0.00035016,30]
[310922047,1704820244422,-301.81890865,0.0003507,4]
[310922048,1704820244431,-154.41457912,0.00035071,7]
[310922049,1704820244441,-152.38900235,0.00035092,7]
[310922050,1704820244450,-5000.0,0.00035119,7]
[310922051,1704820244458,-659.06311478,0.00035151,7]
[310922052,1704820244467,-659.06311478,0.0003518,7]
[310922053,1704820244476,-165.87145795,0.00035197,2]
[310922054,1704820244485,-308.47955221,0.00035198,4]
[310922055,1704820244495,-195126.71694395,0.000352,4]
[310922056,1704820244513,-10202.84952288,0.000352,4]
[310922057,1704820244524,-34228.79722205,0.000352,4]
[310922058,1704820244534,-189.542468,0.00035219,2]
[310922059,1704820244543,-165.62897,0.00035224,2]
[310922060,1704820244552,-659.06311478,0.00035286,7]
[310922061,1704820244561,-659.06311478,0.00035291,7]
[310922062,1704820244570,-1493.80823397,0.00035298,23]
[310922063,1704820244580,-300000.0,0.000353,5]
[310922064,1704820244589,-659.06311478,0.0003531,7]
[310922065,1704820244598,-154.41457912,0.00035311,7]
[310922066,1704820244609,-154.41457912,0.00035333,7]
[310922067,1704820244618,-659.06311478,0.00035339,7]
[310922068,1704820244628,-242.92345092,0.00035353,7]
[310922069,1704820244637,-152.38900235,0.00035387,7]
[310922070,1704820244647,-300000.0,0.000354,6]
[310922071,1704820244656,-301.0,0.00035415,2]
[310922072,1704820244667,-152.38900235,0.00035429,7]
[310922073,1704820244676,-659.06311478,0.00035432,7]
[310922074,1704820244685,-659.06311478,0.00035474,7]
[310922075,1704820244695,-154.41457912,0.00035497,7]
[310922076,1704820244706,-47058.90272354,0.000355,14]
[310922077,1704820244715,-659.06311478,0.00035513,7]
[310922078,1704820244724,-341.1072815,0.00035514,4]
[310922079,1704820244734,-156.08945156,0.00035514,6]
[310922080,1704820244743,-151.0,0.00035599,2]
[310922081,1704820244753,-659.06311478,0.0003561,7]
[310922082,1704820244762,-500.80230841,0.00035616,2]
[310922083,1704820244771,-500.0,0.00035616,2]
[310922084,1704820244781,-500.0,0.00035616,2]
[310922085,1704820244790,-500.0,0.00035616,2]
[310922086,1704820244799,-500.0,0.00035616,2]
[310922087,1704820244808,-500.0,0.00035616,2]
[310922088,1704820244818,-500.0,0.00035616,2]
[310922089,1704820244827,-500.0,0.00035616,2]
[310922090,1704820244841,-500.0,0.00035616,2]
[310922091,1704820244856,-369.30655585,0.00035616,2]
[310922092,1704820244871,-503.21238465,0.00035616,2]
[310922093,1704820244883,-500.0,0.00035616,2]
[310922094,1704820244894,-603.27854241,0.00035616,2]
[310922095,1704820244908,-636.68,0.00035616,2]
[310922096,1704820244921,-500.0,0.00035616,2]
[310922097,1704820244935,-17.39374684,0.00035616,2]
[310922098,1704820245364,-155.35410994,0.00017498,2]
[310922099,1704820245375,-311.9564095,0.00030637,7]
[310922100,1704820245389,-4688.0435905,0.00030637,7]
[310922101,1704820245400,-171.0,0.00035,2]
[310922102,1704820245412,-615.30141374,0.00035616,2]
[310922103,1704820245423,-500.57419253,0.00035616,2]
[310922104,1704820245434,-500.0,0.00035616,2]
[310922105,1704820245444,-501.51872491,0.00035616,2]
[310922106,1704820245456,-500.0,0.00035616,2]
[310922107,1704820245467,-502.78393831,0.00035616,2]
[310922108,1704820245479,-500.0,0.00035616,2]
[310922109,1704820245490,-408.56538913,0.00035616,2]
[310922110,1704820245501,-492.41906746,0.00035616,2]
[310922111,1704820245513,-653.06,0.00035616,2]
[310922112,1704820245525,-500.0,0.00035616,2]
[310922113,1704820245536,-1000.0,0.00035616,2]
[310922114,1704820245548,-210.69454058,0.00035616,2]
[310922115,1704820245559,-500.0,0.00035616,2]
[310922116,1704820245571,-500.0,0.00035616,2]
[310922117,1704820245582,-150.0,0.00035616,2]
[310922118,1704820245593,-500.0,0.00035616,2]
[310922119,1704820245605,-500.0,0.00035616,2]
[310922120,1704820245616,-69.87016675,0.00035616,2]
[310922150,1704820261400,15230.74611438,0.00016,5]
[310922151,1704820261437,1082.66935931,0.00016,5]
[310922157,1704820475957,165.36431291,0.00016,2]
[310922158,1704820533620,156.05408519,0.00016,2]
[310922160,1704821098001,155.71471763,0.00016,2]
[310922161,1704821104575,7073.0,0.0001702,2]
[310922162,1704821295415,3083.56726515,0.0001702,2]
[310922163,1704821302656,343.50222297,0.0001702,2]
[310922164,1704821306801,157.17804283,0.0001702,2]
[310922190,1704821432492,-154.90705577,0.0001733,2]
[310922193,1704821432502,-154.90705577,0.00017331,3]
[310922194,1704821432512,-758.65551311,0.00017332,2]
[310922196,1704821432521,-154.90705577,0.00017332,2]
[310922198,1704821432530,-154.90705577,0.00017332,2]
[310922200,1704821432539,-1030.35167796,0.00017333,2]
[310922202,1704821432549,-5601.45357271,0.00017334,2]
[310922204,1704821432558,-260.869305,0.00017384,2]
[310922206,1704821432567,-5166.3063336,0.00017385,2]
[310922208,1704821432575,-560.33964085,0.00017509,2]
[310922210,1704821432585,-294.68050852,0.00017509,2]
[310922212,1704821432595,-154.90705577,0.00017509,2]
[310922214,1704821432604,-154.90705577,0.00017509,2]
[310922216,1704821432614,-469.54906413,0.00017509,2]
[310922218,1704821432624,-156.56754629,0.00017509,2]
[310922220,1704821432633,-158.31457187,0.00017509,2]
[310922222,1704821432643,-1995.03988878,0.00017509,2]
[310922224,1704821432652,-1239.58974316,0.00017509,2]
[310922226,1704821432661,-2104.62444559,0.0001751,2]
[310922228,1704821432671,-29009.1954288,0.00017511,2]
[310922230,1704821432681,-9370.63404329,0.00017897,2]
[310922233,1704821432698,-2379.08627427,0.00017897,2]
[310922301,1704821438637,-154.90705577,0.0001733,2]
[310922302,1704821438649,-672.69342794,0.00017897,2]
[310922303,1704821438661,-1372.03666731,0.00017897,2]
[310922304,1704821438677,-256931.95278406,0.00017897,2]
[310922305,1704821438686,-10496.72843604,0.00017898,2]
[310922306,1704821438695,-154.90705577,0.00018,2]
[310922307,1704821438705,-173.42807977,0.00018416,2]
[310922308,1704821438714,-155.6802552,0.00018507,2]
[310922309,1704821438723,-295.03899156,0.00018507,2]
[310922310,1704821438733,-284.37251424,0.00018507,2]
[310922311,1704821438742,-159.94916056,0.00018507,2]
[310922312,1704821438751,-284.25470395,0.00018507,2]
[310922313,1704821438760,-156.98565569,0.00018507,2]
[310922314,1704821438769,-155.07733581,0.00018507,2]
[310922315,1704821438779,-309.29707472,0.00018507,2]
[310922316,1704821438788,-282.95929965,0.00018507,2]
[310922317,1704821438797,-181.27243603,0.00018507,2]
[310922318,1704821438806,-415.8862874,0.00018507,2]
[310922319,1704821438815,-309.7234177,0.00018507,2]
[310922320,1704821438825,-154.90705577,0.00018507,2]
[310922321,1704821438834,-245.69118916,0.00018507,2]
[310922322,1704821438843,-246.59333994,0.00018507,2]
[310922323,1704821438852,-243.63101472,0.00018507,2]
[310922324,1704821438862,-15376.09177781,0.00018508,2]
[310922325,1704821438871,-309.62844586,0.00018509,2]
[310922326,1704821438880,-262.76381907,0.00018509,2]
[310922327,1704821438890,-2872.41512846,0.00018509,2]
[310922328,1704821438904,-223.79832195,0.00018509,2]
[310922329,1704821438913,-158.53994952,0.00018509,2]
[310922330,1704821438922,-163.91841894,0.00018509,2]
[310922331,1704821438931,-11005.58334538,0.00018509,2]
[310922332,1704821438941,-274.82478753,0.00018509,2]
[310922333,1704821438950,-250.6519581,0.00018509,2]
[310922334,1704821438960,-157.43877392,0.00018509,2]
[310922335,1704821438970,-201.84999302,0.00018509,2]
[310922336,1704821438979,-166.53442625,0.00018509,2]
[310922337,1704821438988,-155.19386469,0.00018509,2]
[310922338,1704821438997,-209.35290532,0.00018509,2]
[310922339,1704821439007,-1736.22791951,0.0001851,2]
[310922340,1704821439016,-261.20103296,0.0001851,2]
[310922341,1704821439026,-156.47437255,0.0001851,2]
[310922342,1704821439036,-204.91963394,0.0001851,2]
[310922343,1704821439046,-156.36978952,0.0001851,2]
[310922344,1704821439055,-275.34209149,0.0001851,2]
[310922345,1704821439064,-10653.97162265,0.00018512,2]
[310922346,1704821439073,-155.43819691,0.00018516,2]
[310922347,1704821439083,-282.05090519,0.00018516,2]
[310922348,1704821439093,-880.89337746,0.00018516,2]
[310922349,1704821439102,-24900.0,0.00018518,2]
[310922350,1704821439111,-1578.28669107,0.00019,2]
[310922351,1704821439120,-175.754573,0.00019178,2]
[310922352,1704821439129,-1402.0338145,0.00019358,2]
[310922353,1704821439138,-1402.03381447,0.00019402,2]
[310922354,1704821439150,-184.99200067,0.00019422,2]
[310922355,1704821439159,-1402.03381447,0.00019446,2]
[310922356,1704821439168,-1402.03381447,0.00019489,2]
[310922357,1704821439177,-1018.6437214,0.0001949,2]
[310922358,1704821439186,-1112.0110415,0.000195,2]
[310922359,1704821439195,-250.35796176,0.0001951,2]
[310922360,1704821439205,-1402.03381447,0.00019533,2]
[310922361,1704821439214,-41871.30071309,0.00019534,2]
[310922362,1704821439224,-234.48957017,0.00019633,2]
[310922363,1704821439233,-198.15982049,0.00019634,2]
[310922364,1704821439244,-525.439294,0.00019968,2]